bitfinex-derivatives/quotes_BNBF0:USTF0_20250524
["timestamp","ask_amount","ask_price","bid_price","bid_amount"]
[1748052767289,0.30169552,662.92,662.12,1.643]
[1748052767490,1.5916373,662.91,662.12,1.643]
[1748052767684,1.5916373,662.9,662.12,1.643]
[1748052767883,1.5916373,662.89,662.12,1.643]
[1748052768090,1.5916373,662.88,662.12,1.643]
[1748052768289,3.09543467,662.87,662.12,1.643]
[1748052768589,1.5916373,662.86,662.12,1.643]
[1748052768789,1.5916373,662.85,662.12,1.643]
[1748052768989,1.5916373,662.84,662.12,1.643]
[1748052769191,1.5916373,662.83,662.12,1.643]
[1748052769392,1.5916373,662.82,662.12,1.643]
[1748052769589,1.5916373,662.81,662.12,1.643]
[1748052769786,1.5916373,662.8,662.12,1.643]
[1748052769987,1.5916373,662.79,662.12,1.643]
[1748052770187,1.5916373,662.78,662.12,1.643]
[1748052770486,1.5916373,662.77,662.12,1.643]
[1748052770686,1.5916373,662.76,662.12,1.643]
[1748052770989,1.5916373,662.75,662.12,1.643]
[1748052771291,1.5916373,662.74,662.12,1.643]
[1748052771488,1.5916373,662.73,662.12,1.643]
[1748052771790,1.5916373,662.72,662.12,1.643]
[1748052771991,1.5916373,662.71,662.12,1.643]
[1748052772191,1.5916373,662.7,662.12,1.643]
[1748052772388,1.50379737,662.86,662.12,1.643]
[1748052772389,1.5916373,662.69,662.12,1.643]
[1748052772586,1.5916373,662.68,662.12,1.643]
[1748052772788,1.5916373,662.67,662.12,1.643]
[1748052772989,1.59100374,662.66,662.12,1.643]
[1748052773189,1.59100374,662.65,662.12,1.643]
[1748052773389,1.59100374,662.64,662.12,1.643]
[1748052773591,1.59100374,662.63,662.12,1.643]
[1748052773790,1.59100374,662.62,662.12,1.643]
[1748052773990,1.59100374,662.61,662.12,1.643]
[1748052774289,1.59100374,662.6,662.12,1.643]
[1748052774489,1.59100374,662.59,662.12,1.643]
[1748052774694,1.09804037,662.58,662.12,1.643]
[1748052774893,1.09804037,662.57,662.12,1.643]
[1748052775192,1.09804037,662.56,662.12,1.643]
[1748052775393,1.09857749,662.55,662.12,1.643]
[1748052775595,1.50379737,662.86,662.12,1.643]
[1748052775794,1.59176933,662.85,662.12,1.643]
[1748052775988,1.59176933,662.84,662.12,1.643]
[1748052776193,1.59176933,662.83,662.12,1.643]
[1748052776389,1.59176933,662.82,662.12,1.643]
[1748052776595,1.59182196,662.81,662.12,1.643]
[1748052776792,1.59182196,662.8,662.12,1.643]
[1748052776993,1.59182196,662.79,662.12,1.643]
[1748052777291,1.59182196,662.78,662.12,1.643]
[1748052777493,1.59182196,662.77,662.12,1.643]
[1748052777694,1.59182196,662.76,662.12,1.643]
[1748052777895,1.59182196,662.75,662.12,1.643]
[1748052778096,1.59182196,662.74,662.12,1.643]
[1748052778295,1.59182196,662.73,662.12,1.643]
[1748052778494,1.59182196,662.72,662.12,1.643]
[1748052778698,1.59182196,662.71,662.12,1.643]
[1748052778901,1.59182196,662.7,662.12,1.643]
[1748052779095,1.59182196,662.69,662.12,1.643]
[1748052779299,1.59182196,662.68,662.12,1.643]
[1748052779499,1.59182196,662.67,662.12,1.643]
[1748052779701,1.59182196,662.66,662.12,1.643]
[1748052779900,1.59182196,662.65,662.12,1.643]
[1748052780100,1.59196252,662.64,662.12,1.643]
[1748052780401,1.59196252,662.63,662.12,1.643]
[1748052780601,1.59196252,662.62,662.12,1.643]
[1748052780800,1.59196252,662.61,662.12,1.643]
[1748052780996,1.59196252,662.6,662.12,1.643]
[1748052781200,1.59196252,662.59,662.12,1.643]
[1748052781501,1.0987472,662.58,662.12,1.643]
[1748052781801,1.0987472,662.57,662.12,1.643]
[1748052782000,1.0987472,662.56,662.12,1.643]
[1748052782200,1.0987472,662.55,662.12,1.643]
[1748052782400,1.0987472,662.54,662.12,1.643]
[1748052782601,1.50379737,662.79,662.12,1.643]
[1748052782803,1.59198238,662.78,662.12,1.643]
[1748052782997,1.59198238,662.77,662.12,1.643]
[1748052783201,1.59198238,662.76,662.12,1.643]
[1748052783401,1.59198238,662.75,662.12,1.643]
[1748052783601,1.59198238,662.74,662.12,1.643]
[1748052783798,1.59198238,662.73,662.12,1.643]
[1748052784005,1.59198238,662.72,662.12,1.643]
[1748052784201,1.59198238,662.71,662.12,1.643]
[1748052784501,1.59198238,662.7,662.12,1.643]
[1748052784698,1.59198238,662.69,662.12,1.643]
[1748052784893,1.59198238,662.68,662.12,1.643]
[1748052785103,1.59198238,662.67,662.12,1.643]
[1748052785296,1.59198238,662.66,662.12,1.643]
[1748052785500,1.59198238,662.65,662.12,1.643]
[1748052785799,1.59198238,662.64,662.12,1.643]
[1748052785999,1.09870617,662.63,662.12,1.643]
[1748052786198,1.50379737,662.77,662.12,1.643]
[1748052786399,1.59178547,662.76,662.12,1.643]
[1748052786602,1.59181887,662.75,662.12,1.643]
[1748052786797,1.59181887,662.74,662.12,1.643]
[1748052787002,1.09870859,662.73,662.12,1.643]
[1748052787202,1.09870859,662.72,662.12,1.643]
[1748052787402,1.09869559,662.71,662.12,1.643]
[1748052787602,1.09869559,662.7,662.12,1.643]
[1748052787798,1.09869559,662.69,662.12,1.643]
[1748052788002,1.50379737,662.88,662.12,1.643]
[1748052788203,1.59182186,662.87,662.12,1.643]
[1748052788403,1.59182186,662.86,662.12,1.643]
[1748052788604,1.59182186,662.85,662.12,1.643]
[1748052788900,1.59182186,662.84,662.12,1.643]
[1748052789205,1.59182186,662.83,662.12,1.643]
[1748052789406,1.59182186,662.82,662.12,1.643]
[1748052789605,1.59182186,662.81,662.12,1.643]
[1748052789902,1.59182186,662.8,662.12,1.643]
[1748052790206,1.59182186,662.79,662.12,1.643]
[1748052790403,1.59182186,662.78,662.12,1.643]
[1748052790607,1.59182186,662.77,662.12,1.643]
[1748052790805,1.59182186,662.76,662.12,1.643]
[1748052791006,1.59182186,662.75,662.12,1.643]
[1748052791202,1.59182186,662.74,662.12,1.643]
[1748052791406,1.59182186,662.73,662.12,1.643]
[1748052791606,1.59182186,662.72,662.12,1.643]
[1748052791807,1.09870155,662.71,662.12,1.643]
[1748052792007,1.09870155,662.7,662.12,1.643]
[1748052792206,1.09888409,662.69,662.12,1.643]
[1748052792408,1.09888409,662.68,662.12,1.643]
[1748052792604,1.09890739,662.67,662.12,1.643]
[1748052792810,1.50379737,662.9,662.12,1.643]
[1748052793005,1.59212474,662.89,662.12,1.643]
[1748052793212,1.59212474,662.88,662.12,1.643]
[1748052793411,1.59212474,662.87,662.12,1.643]
[1748052793709,1.59212474,662.86,662.12,1.643]
[1748052793908,1.59212474,662.85,662.12,1.643]
[1748052794109,1.59215073,662.84,662.12,1.643]
[1748052794305,1.59215073,662.83,662.12,1.643]
[1748052794504,1.59215073,662.82,662.12,1.643]
[1748052794709,1.59214094,662.81,662.12,1.643]
[1748052794911,1.59214094,662.8,662.12,1.643]
[1748052795111,1.59214094,662.79,662.12,1.643]
[1748052795310,1.59214094,662.78,662.12,1.643]
[1748052795611,1.59214094,662.77,662.12,1.643]
[1748052795811,1.59116713,662.76,662.12,1.643]
[1748052796013,1.59116713,662.75,662.12,1.643]
[1748052796311,1.59116713,662.74,662.12,1.643]
[1748052796512,1.59116713,662.73,662.12,1.643]
[1748052796712,1.59116713,662.72,662.12,1.643]
[1748052797014,1.09820862,662.71,662.12,1.643]
[1748052797206,1.09820862,662.7,662.12,1.643]
[1748052797406,1.09820862,662.69,662.12,1.643]
[1748052797611,1.09820862,662.68,662.12,1.643]
[1748052797811,1.09820862,662.67,662.12,1.643]
[1748052798011,1.50379737,662.89,662.12,1.643]
[1748052798207,1.59163486,662.88,662.12,1.643]
[1748052798411,1.59163486,662.87,662.12,1.643]
[1748052798609,1.59163486,662.86,662.12,1.643]
[1748052798814,1.59163486,662.85,662.12,1.643]
[1748052799011,1.59163486,662.84,662.09,1.09506973]
[1748052799212,1.50379737,662.79,662.15,1.09506973]
[1748052799409,1.59144212,662.78,662.15,1.09506973]
[1748052799614,1.59144212,662.77,662.15,1.09506973]
[1748052799816,1.59144212,662.76,662.15,1.09506973]
[1748052800015,1.59144212,662.75,662.15,1.09506973]
[1748052800214,1.59144212,662.74,662.15,1.09506973]
[1748052800515,1.59144212,662.73,662.15,1.09506973]
[1748052800712,1.59144212,662.72,662.15,1.09506973]
[1748052800918,1.09839848,662.71,662.15,1.09506973]
[1748052801114,1.09839848,662.7,662.15,1.09506973]
[1748052801312,1.09839848,662.69,662.15,1.09506973]
[1748052801513,1.09839848,662.68,662.16,1.225]
[1748052801716,1.09818442,662.67,662.16,1.225]
[1748052801918,1.50379737,662.79,662.16,1.225]
[1748052802212,1.59113508,662.78,662.16,1.225]
[1748052802517,1.59113508,662.77,662.16,1.225]
[1748052802717,1.59113508,662.76,662.16,1.225]
[1748052802917,1.59113508,662.75,662.16,1.225]
[1748052803121,1.59111505,662.74,662.16,1.225]
[1748052803321,1.59111505,662.73,662.16,1.225]
[1748052803518,1.59111505,662.72,662.16,1.225]
[1748052803719,1.0981725,662.71,662.16,1.225]
[1748052804020,1.0981725,662.7,662.16,1.225]
[1748052804218,1.0981725,662.69,662.16,1.225]
[1748052804414,1.0981725,662.68,662.16,1.225]
[1748052804620,1.50379737,662.79,662.16,1.225]
[1748052804817,1.59112845,662.78,662.16,1.225]
[1748052805017,1.59112716,662.77,662.16,1.225]
[1748052805215,1.59112716,662.76,662.16,1.225]
[1748052805417,1.59112716,662.75,662.16,1.225]
[1748052805622,1.59112716,662.74,662.16,1.225]
[1748052805816,1.59112716,662.73,662.16,1.225]
[1748052806018,1.0981826,662.72,662.16,1.225]
[1748052806219,1.0981826,662.71,662.16,1.225]
[1748052806423,1.0981826,662.7,662.16,1.225]
[1748052806723,1.09828807,662.69,662.16,1.225]
[1748052807022,1.09828807,662.68,662.16,1.225]
[1748052807223,1.50379737,662.83,662.16,1.225]
[1748052807424,1.59128728,662.82,662.16,1.225]
[1748052807618,1.59128728,662.81,662.16,1.225]
[1748052807824,1.59128728,662.8,662.16,1.225]
[1748052808021,1.59128728,662.79,662.16,1.225]
[1748052808223,1.59128728,662.78,662.16,1.225]
[1748052808424,1.59128728,662.77,662.16,1.225]
[1748052808625,1.59128728,662.76,662.16,1.225]
[1748052808824,1.59128728,662.75,662.16,1.225]
[1748052809025,1.59128728,662.74,662.16,1.225]
[1748052809226,1.59128728,662.73,662.16,1.225]
[1748052809426,1.59128728,662.72,662.16,1.225]
[1748052809626,1.09829219,662.71,662.16,1.225]
[1748052809826,1.09829219,662.7,662.16,1.225]
[1748052810028,1.09829219,662.69,662.16,1.225]
[1748052810228,1.09829219,662.68,662.16,1.225]
[1748052810424,1.50379737,662.87,662.16,1.225]
[1748052810425,1.09843187,662.67,662.16,1.225]
[1748052810625,1.50379737,662.87,662.16,1.225]
[1748052810829,1.59173293,662.86,662.16,1.225]
[1748052811032,1.59173293,662.85,662.16,1.225]
[1748052811223,1.59173293,662.84,662.16,1.225]
[1748052811424,1.59173293,662.83,662.16,1.225]
[1748052811624,1.59173293,662.82,662.16,1.225]
[1748052811827,1.59173293,662.81,662.16,1.225]
[1748052812028,1.59173293,662.8,662.16,1.225]
[1748052812229,1.5918412,662.79,662.16,1.225]
[1748052812430,1.5918412,662.78,662.16,1.225]
[1748052812632,1.5918412,662.77,662.16,1.225]
[1748052812831,1.5918412,662.76,662.16,1.225]
[1748052813131,1.5918412,662.75,662.16,1.225]
[1748052813330,1.5918412,662.74,662.16,1.225]
[1748052813526,1.5918412,662.73,662.16,1.225]
[1748052813726,1.5918412,662.72,662.16,1.225]
[1748052813926,1.5918412,662.71,662.16,1.225]
[1748052814131,1.09849644,662.7,662.16,1.225]
[1748052814331,1.09849644,662.69,662.16,1.225]
[1748052814529,1.09849644,662.68,662.16,1.225]
[1748052814729,1.09849644,662.67,662.16,1.225]
[1748052814930,1.09849644,662.66,662.16,1.225]
[1748052815230,1.50379737,662.87,662.16,1.225]
[1748052815428,1.59210679,662.86,662.16,1.225]
[1748052815628,1.59210679,662.85,662.16,1.225]
[1748052815830,1.59210679,662.84,662.16,1.225]
[1748052816031,1.50379737,662.87,662.16,1.225]
[1748052816032,1.59210679,662.83,662.16,1.225]
[1748052816227,1.59210679,662.82,662.16,1.225]
[1748052816432,1.59210679,662.81,662.16,1.225]
[1748052816728,1.59210679,662.8,662.16,1.225]
[1748052816932,1.59210679,662.79,662.16,1.225]
[1748052817133,1.59210679,662.78,662.16,1.225]
[1748052817429,1.59210679,662.77,662.16,1.225]
[1748052817633,1.59208329,662.76,662.16,1.225]
[1748052817827,1.59208329,662.75,662.16,1.225]
[1748052818027,1.59208329,662.74,662.16,1.225]
[1748052818228,1.59208329,662.73,662.16,1.225]
[1748052818431,1.59208329,662.72,662.16,1.225]
[1748052818636,1.09864634,662.71,662.16,1.225]
[1748052818935,1.09864634,662.7,662.16,1.225]
[1748052819235,1.50379737,662.87,662.16,1.225]
[1748052819535,1.59205014,662.86,662.16,1.225]
[1748052819736,1.59205014,662.85,662.16,1.225]
[1748052819935,1.59205014,662.84,662.16,1.225]
[1748052820136,1.59205014,662.83,662.16,1.225]
[1748052820337,1.59205014,662.82,662.16,1.225]
[1748052820537,1.59205014,662.81,662.16,1.225]
[1748052820738,1.59205014,662.8,662.17,1.09506973]
[1748052820938,1.59205014,662.79,662.17,1.09506973]
[1748052821138,1.09858661,662.78,662.17,1.09506973]
[1748052821340,1.09829161,662.77,662.17,1.09506973]
[1748052821539,1.09829161,662.76,662.17,1.09506973]
[1748052821733,1.09829161,662.75,662.17,1.09506973]
[1748052822033,0.30169552,662.92,662.17,1.09506973]
[1748052822238,1.59152971,662.91,662.17,1.09506973]
[1748052822437,1.59152971,662.9,662.17,1.09506973]
[1748052822635,1.59152971,662.89,662.17,1.09506973]
[1748052822839,1.59152971,662.88,662.17,1.09506973]
[1748052823139,1.59134749,662.87,662.17,1.09506973]
[1748052823340,1.59134749,662.86,662.17,1.09506973]
[1748052823537,1.59134749,662.85,662.17,1.09506973]
[1748052823732,1.59134749,662.84,662.17,1.09506973]
[1748052823938,1.59134749,662.83,662.15,1.09506973]
[1748052824138,1.59126832,662.82,662.15,1.09506973]
[1748052824342,1.59126832,662.81,662.15,1.09506973]
[1748052824550,1.59126832,662.8,662.15,1.09506973]
[1748052824843,1.09784133,662.79,662.15,1.09506973]
[1748052825048,1.09784133,662.78,662.15,1.09506973]
[1748052825245,1.09784133,662.77,662.15,1.09506973]
[1748052825445,1.09784133,662.76,662.15,1.09506973]
[1748052825644,0.30169552,662.92,662.15,1.09506973]
[1748052825841,1.59048813,662.91,662.15,1.09506973]
[1748052826045,1.59048813,662.9,662.15,1.09506973]
[1748052826243,1.59048813,662.89,662.15,1.09506973]
[1748052826446,1.59048813,662.88,662.15,1.09506973]
[1748052826646,0.30169552,662.92,662.15,1.09506973]
[1748052826647,1.59048813,662.87,662.15,1.09506973]
[1748052826843,1.59048813,662.86,662.16,1.475]
[1748052827044,1.59048813,662.85,662.16,1.475]
[1748052827241,1.59048813,662.84,662.16,1.475]
[1748052827545,1.59048813,662.83,662.16,1.475]
[1748052827745,1.59048813,662.82,662.16,1.475]
[1748052828046,1.59048813,662.81,662.16,1.475]
[1748052828242,1.59048813,662.8,662.16,1.475]
[1748052828443,0.30169552,662.92,662.16,1.475]
[1748052828444,1.09777447,662.79,662.16,1.475]
[1748052828643,1.09763522,662.78,662.16,1.475]
[1748052828945,1.09763522,662.77,662.16,1.475]
[1748052829142,1.09763522,662.76,662.16,1.475]
[1748052829444,1.0976315,662.75,662.16,1.475]
[1748052829642,1.0976315,662.74,662.16,1.475]
[1748052829843,0.30169552,662.92,662.16,1.475]
[1748052830043,1.59031705,662.91,662.16,1.475]
[1748052830248,1.59031705,662.9,662.16,1.475]
[1748052830446,1.59040225,662.89,662.16,1.475]
[1748052830748,1.59040225,662.88,662.16,1.475]
[1748052830947,1.59040225,662.87,662.16,1.475]
[1748052831145,0.30169552,662.92,662.16,1.475]
[1748052831146,1.59040225,662.86,662.16,1.475]
[1748052831341,1.59040225,662.85,662.16,1.475]
[1748052831545,1.59040225,662.84,662.16,1.475]
[1748052831841,1.59040225,662.83,662.16,1.475]
[1748052832040,1.59040225,662.82,662.16,1.475]
[1748052832243,1.59069274,662.81,662.16,1.475]
[1748052832443,1.59069274,662.8,662.16,1.475]
[1748052832642,1.59069274,662.79,662.16,1.475]
[1748052832845,1.59069274,662.78,662.16,1.475]
[1748052833044,1.59069274,662.77,662.16,1.475]
[1748052833242,1.59069274,662.76,662.16,1.475]
[1748052833444,1.59069274,662.75,662.16,1.475]
[1748052833646,1.59069274,662.74,662.16,1.475]
[1748052833843,1.59069274,662.73,662.16,1.475]
[1748052834048,1.09795636,662.72,662.16,1.475]
[1748052834342,1.09795636,662.71,662.16,1.475]
[1748052834547,1.09795636,662.7,662.16,1.475]
[1748052834748,1.09795636,662.69,662.16,1.475]
[1748052834948,1.09795636,662.68,662.16,1.475]
[1748052835149,0.30169552,662.92,662.16,1.475]
[1748052835351,1.59093402,662.91,662.16,1.475]
[1748052835649,1.59093402,662.9,662.16,1.475]
[1748052835850,1.59100247,662.89,662.16,1.475]
[1748052836051,1.59100247,662.88,662.16,1.475]
[1748052836350,1.59100247,662.87,662.16,1.475]
[1748052836544,1.50379737,662.89,662.16,1.475]
[1748052836545,1.59100247,662.86,662.16,1.475]
[1748052836745,1.59100247,662.85,662.16,1.475]
[1748052836953,1.59100247,662.84,662.16,1.475]
[1748052837151,1.59100247,662.83,662.16,1.475]
[1748052837350,1.59100247,662.82,662.16,1.475]
[1748052837552,1.59163804,662.81,662.16,1.475]
[1748052837753,1.59164401,662.8,662.16,1.475]
[1748052837947,1.59164401,662.79,662.16,1.475]
[1748052838151,1.59164401,662.78,662.16,1.475]
[1748052838451,1.59164401,662.77,662.16,1.475]
[1748052838746,1.59164401,662.76,662.16,1.475]
[1748052838947,1.59164401,662.75,662.16,1.475]
[1748052839148,1.59164401,662.74,662.16,1.475]
[1748052839347,1.59164401,662.73,662.16,1.475]
[1748052839549,1.59164401,662.72,662.16,1.475]
[1748052839752,1.59164401,662.71,662.16,1.475]
[1748052839954,1.59164401,662.7,662.16,1.475]
[1748052840153,1.59164401,662.69,662.16,1.475]
[1748052840352,1.0987276,662.68,662.16,1.475]
[1748052840552,1.0987276,662.67,662.16,1.475]
[1748052840753,1.0987276,662.66,662.16,1.475]
[1748052840955,1.59195223,662.65,662.16,1.475]
[1748052841152,1.09891907,662.64,662.16,1.475]
[1748052841353,1.59217037,662.63,662.16,1.475]
[1748052841546,1.59217037,662.62,662.16,1.475]
[1748052841750,1.09891907,662.61,662.16,1.475]
[1748052842045,1.09891907,662.6,662.16,1.475]
[1748052842250,1.09891907,662.59,662.16,1.475]
[1748052842450,1.09891907,662.58,662.16,1.475]
[1748052842650,1.09891907,662.57,662.16,1.475]
[1748052842849,1.09891907,662.56,662.16,1.475]
[1748052843154,1.50379737,662.78,662.16,1.475]
[1748052843352,1.5928191,662.77,662.16,1.475]
[1748052843651,1.5928191,662.76,662.16,1.475]
[1748052843854,1.5928191,662.75,662.16,1.475]
[1748052844053,1.5928191,662.74,662.16,1.475]
[1748052844252,1.5928191,662.73,662.16,1.475]
[1748052844456,1.5928191,662.72,662.16,1.475]
[1748052844649,1.5928191,662.71,662.16,1.475]
[1748052844947,1.5928191,662.7,662.16,1.475]
[1748052845150,1.5928191,662.69,662.16,1.475]
[1748052845351,1.5928191,662.68,662.16,1.475]
[1748052845554,1.5928191,662.67,662.16,1.475]
[1748052845750,1.5928191,662.66,662.05,1.09506973]
[1748052845954,1.5928191,662.65,662.04,1.09506973]
[1748052846154,1.5928191,662.64,662.04,1.09506973]
[1748052846453,1.5928191,662.63,662.04,1.09506973]
[1748052846648,1.5928191,662.62,662.04,1.09506973]
[1748052846852,1.5928191,662.61,662.04,1.09506973]
[1748052847050,1.5928191,662.6,662.04,1.09506973]
[1748052847250,1.09937875,662.59,662.04,1.09506973]
[1748052847449,1.09937875,662.58,662.04,1.09506973]
[1748052847753,1.09937875,662.57,662.04,1.09506973]
[1748052847952,1.09937875,662.56,662.04,1.09506973]
[1748052848152,1.50379737,662.78,662.04,1.09506973]
[1748052848348,1.59296568,662.77,662.04,1.09506973]
[1748052848554,1.59296568,662.76,662.05,1.624]
[1748052848754,1.50379737,662.74,662.07,1.09506973]
[1748052848957,1.59296568,662.73,662.07,1.09506973]
[1748052849155,1.59296568,662.72,662.07,1.09506973]
[1748052849354,1.59296568,662.71,662.07,1.09506973]
[1748052849654,1.59296568,662.7,662.07,1.09506973]
[1748052849852,1.59314499,662.69,662.07,1.09506973]
[1748052850051,1.59314499,662.68,662.07,1.09506973]
[1748052850252,1.59314499,662.67,662.07,1.09506973]
[1748052850450,1.59314499,662.66,662.07,1.09506973]
[1748052850747,1.59314499,662.65,662.07,1.09506973]
[1748052850948,1.59314499,662.64,662.07,1.09506973]
[1748052851152,1.59314499,662.63,662.07,1.09506973]
[1748052851353,1.59314499,662.62,662.07,1.09506973]
[1748052851549,1.59314499,662.61,662.07,1.09506973]
[1748052851754,1.09936797,662.6,662.06,1.09506973]
[1748052851957,1.09936797,662.59,662.06,1.09506973]
[1748052852155,1.09936797,662.58,662.06,1.09506973]
[1748052852460,1.09936797,662.57,662.06,1.09506973]
[1748052852755,1.50379737,662.77,662.06,1.09506973]
[1748052852957,1.59324261,662.76,662.06,1.09506973]
[1748052853154,1.59324261,662.75,662.06,1.09506973]
[1748052853354,1.59324261,662.74,662.06,1.09506973]
[1748052853551,1.59323714,662.73,662.06,1.09506973]
[1748052853750,1.59323714,662.72,662.06,1.09506973]
[1748052853950,1.59323714,662.71,662.06,1.09506973]
[1748052854153,1.59323714,662.7,662.06,1.09506973]
[1748052854352,1.59323714,662.69,662.06,1.09506973]
[1748052854655,1.59323714,662.68,662.06,1.09506973]
[1748052854853,1.59323714,662.67,662.06,1.09506973]
[1748052855055,1.59323714,662.66,662.06,1.09506973]
[1748052855258,1.59323714,662.65,662.06,1.09506973]
[1748052855451,1.593237,662.64,662.06,1.09506973]
[1748052855655,1.593237,662.63,662.06,1.09506973]
[1748052855853,1.593237,662.62,662.06,1.09506973]
[1748052856055,1.09942239,662.61,662.06,1.09506973]
[1748052856258,1.09942239,662.6,662.06,1.09506973]
[1748052856559,1.09942239,662.59,662.06,1.09506973]
[1748052856759,1.09942239,662.58,662.05,1.624]
[1748052856958,1.50379737,662.8,662.05,1.624]
[1748052857158,1.5930859,662.79,662.05,1.624]
[1748052857457,1.5930859,662.78,662.05,1.624]
[1748052857657,1.5930859,662.77,662.05,1.624]
[1748052857857,1.5930859,662.76,662.05,1.624]
[1748052858154,1.5930859,662.75,662.05,1.624]
[1748052858358,1.5930859,662.74,662.05,1.624]
[1748052858557,1.5930859,662.73,662.05,1.624]
[1748052858761,1.5930859,662.72,662.05,1.624]
[1748052858961,1.5930859,662.71,662.05,1.624]
[1748052859163,1.5930859,662.7,662.05,1.624]
[1748052859355,1.5930859,662.69,662.05,1.624]
[1748052859561,1.5930859,662.68,662.05,1.624]
[1748052859760,1.5930859,662.67,662.05,1.624]
[1748052860054,1.5930859,662.66,662.05,1.624]
[1748052860259,1.5930859,662.65,662.05,1.624]
[1748052860456,1.5930859,662.64,662.05,1.624]
[1748052860761,1.50379737,662.78,662.05,1.624]
[1748052860762,1.59306682,662.63,662.05,1.624]
[1748052860957,1.59306682,662.62,662.05,1.624]
[1748052861260,1.09931355,662.61,662.05,1.624]
[1748052861556,1.09931355,662.6,662.05,1.624]
[1748052861756,1.09931355,662.59,662.05,1.624]
[1748052861961,1.09931355,662.58,662.05,1.624]
[1748052862157,1.50379737,662.79,662.05,1.624]
[1748052862355,1.59350474,662.78,662.05,1.624]
[1748052862556,1.59350474,662.77,662.05,1.624]
[1748052862760,1.59350474,662.76,662.05,1.624]
[1748052862956,1.59350474,662.75,662.05,1.624]
[1748052863257,1.59350474,662.74,662.05,1.624]
[1748052863555,1.59350474,662.73,662.05,1.624]
[1748052863760,1.59350474,662.72,662.05,1.624]
[1748052864058,1.59350474,662.71,662.05,1.624]
[1748052864261,1.59350474,662.7,662.05,1.624]
[1748052864457,1.59334916,662.69,662.05,1.624]
[1748052864661,1.59334916,662.68,662.05,1.624]
[1748052864863,1.59334916,662.67,662.05,1.624]
[1748052865065,1.59334916,662.66,662.05,1.624]
[1748052865267,1.59334916,662.65,662.05,1.624]
[1748052865568,1.59334916,662.64,662.05,1.624]
[1748052865767,1.59334916,662.63,662.05,1.624]
[1748052865965,1.59334916,662.62,662.05,1.624]
[1748052866167,1.09966426,662.61,662.05,1.624]
[1748052866467,1.09966426,662.6,662.05,1.624]
[1748052866668,1.09966426,662.59,662.05,1.624]
[1748052866861,1.09966426,662.58,662.05,1.624]
[1748052867067,1.50379737,662.79,662.05,1.624]
[1748052867361,1.59326359,662.78,662.05,1.624]
[1748052867563,1.59326359,662.77,662.05,1.624]
[1748052867862,1.59326359,662.76,662.05,1.624]
[1748052868070,1.59326359,662.75,662.05,1.624]
[1748052868269,1.59324104,662.74,662.05,1.624]
[1748052868469,1.59324104,662.73,662.05,1.624]
[1748052868669,1.59324104,662.72,662.05,1.624]
[1748052868868,1.59324104,662.71,662.05,1.624]
[1748052869064,1.59324104,662.7,662.05,1.624]
[1748052869269,1.59324104,662.69,662.05,1.624]
[1748052869463,1.59324104,662.68,662.05,1.624]
[1748052869669,1.59324104,662.67,662.05,1.624]
[1748052869866,1.59324104,662.66,662.05,1.624]
[1748052870064,1.59320701,662.65,662.05,1.624]
[1748052870268,1.59320701,662.64,662.05,1.624]
[1748052870468,1.59320701,662.63,662.05,1.624]
[1748052870664,1.09958274,662.62,662.05,1.624]
[1748052870863,1.09958274,662.61,662.05,1.624]
[1748052871066,1.09958274,662.6,662.05,1.624]
[1748052871270,1.09958274,662.59,662.05,1.624]
[1748052871464,1.09958274,662.58,662.05,1.624]
[1748052871770,1.50379737,662.76,662.05,1.624]
[1748052872069,1.59289431,662.75,662.05,1.624]
[1748052872266,1.59289431,662.74,662.05,1.624]
[1748052872465,1.59289431,662.73,662.05,1.624]
[1748052872669,1.59289431,662.72,662.05,1.624]
[1748052872870,1.59289431,662.71,662.05,1.624]
[1748052873070,1.59289431,662.7,662.05,1.624]